[Event "MČR v bleskovém šachu družstev 2019"]
[Site "Teplice, Czech Republic"]
[Date "2019.09.14"]
[Round "5.21"]
[White "Bach, Markus"]
[Black "Novotny, Michal"]
[Result "1-0"]
[TimeControl "3 mim. + 2 s"]
[BlackTitle "FM"]
[WhiteFideId "24603376"]
[BlackFideId "310980"]
[WhiteElo "2259"]
[BlackElo "2299"]

1. d4 {[%clk 00:03:01]} {[%emt 00:00:02]} e6 {[%clk 00:03:03]} {[%emt
00:00:02]} 2. g3 {[%clk 00:02:55]} {[%emt 00:00:07]} d5 {[%clk 00:03:04]}
{[%emt 00:00:02]} 3. Nf3 {[%clk 00:02:55]} {[%emt 00:00:01]} Nf6 {[%clk
00:03:05]} {[%emt 00:00:02]} 4. Bg2 {[%clk 00:02:56]} Be7 {[%clk 00:03:06]} 5.
O-O {[%clk 00:02:55]} {[%emt 00:00:03]} O-O {[%clk 00:03:07]} {[%emt 00:00:01]}
6. c4 {[%clk 00:02:34]} {[%emt 00:00:24]} dxc4 {[%clk 00:03:05]} {[%emt
00:00:04]} 7. Qc2 {[%clk 00:02:30]} {[%emt 00:00:06]} b6 {[%clk 00:03:06]} 8.
Qxc4 {[%clk 00:02:13]} {[%emt 00:00:19]} Bb7 {[%clk 00:02:45]} {[%emt
00:00:22]} 9. Nc3 {[%clk 00:02:08]} {[%emt 00:00:07]} Nbd7 {[%clk 00:02:40]}
{[%emt 00:00:07]} 10. Bf4 {[%clk 00:02:01]} {[%emt 00:00:09]} Rc8 {[%clk
00:02:29]} {[%emt 00:00:14]} 11. Qa4 {[%clk 00:01:56]} {[%emt 00:00:07]} a6
{[%clk 00:02:17]} {[%emt 00:00:13]} 12. Rfd1 {[%clk 00:01:56]} {[%emt
00:00:03]} Nd5 {[%clk 00:02:11]} {[%emt 00:00:07]} 13. Nxd5 {[%clk 00:01:53]}
{[%emt 00:00:05]} exd5 {[%clk 00:02:12]} {[%emt 00:00:01]} 14. Ne5 {[%clk
00:01:41]} {[%emt 00:00:14]} Nxe5 {[%clk 00:02:05]} {[%emt 00:00:10]} 15. dxe5
{[%clk 00:01:31]} {[%emt 00:00:12]} c5 {[%clk 00:01:34]} {[%emt 00:00:32]} 16.
Qb3 {[%clk 00:01:24]} {[%emt 00:00:09]} c4 {[%clk 00:01:18]} {[%emt 00:00:18]}
17. Qc3 {[%clk 00:01:25]} Bc5 {[%clk 00:01:09]} {[%emt 00:00:11]} 18. Bxd5
{[%clk 00:01:08]} {[%emt 00:00:20]} Bxd5 {[%clk 00:01:06]} {[%emt 00:00:05]} 19.
e4 {[%clk 00:01:09]} Bxe4 {[%clk 00:00:35]} {[%emt 00:00:34]} 20. Rxd8 {[%clk
00:01:10]} {[%emt 00:00:01]} Rfxd8 {[%clk 00:00:36]} 21. Be3 {[%clk 00:01:09]}
{[%emt 00:00:03]} Bd3 {[%clk 00:00:31]} {[%emt 00:00:07]} 22. Re1 {[%clk
00:01:05]} {[%emt 00:00:06]} h6 {[%clk 00:00:28]} {[%emt 00:00:05]} 23. Bxc5
{[%clk 00:01:05]} {[%emt 00:00:01]} Rxc5 {[%clk 00:00:29]} {[%emt 00:00:01]} 24.
e6 {[%clk 00:00:56]} {[%emt 00:00:12]} fxe6 {[%clk 00:00:30]} 25. Rxe6 {[%clk
00:00:57]} Bf5 {[%clk 00:00:26]} {[%emt 00:00:05]} 26. Re7 {[%clk 00:00:54]}
{[%emt 00:00:05]} Rd1+ {[%clk 00:00:07]} {[%emt 00:00:22]} 27. Kg2 {[%clk
00:00:53]} {[%emt 00:00:01]} Be4+ {[%clk 00:00:05]} {[%emt 00:00:04]} 28. Rxe4
{[%clk 00:00:56]} {[%emt 00:00:01]} Rc7 {[%clk 00:00:05]} {[%emt 00:00:03]} 29.
Rd4 {[%clk 00:00:55]} {[%emt 00:00:02]} Ra1 {[%clk 00:00:03]} {[%emt 00:00:03]}
30. Rxc4 {[%clk 00:00:55]} {[%emt 00:00:03]} Rf7 {[%clk 00:00:04]} {[%emt
00:00:01]} 31. Rc8+ {[%clk 00:00:54]} {[%emt 00:00:03]} Kh7 {[%clk 00:00:05]}
{[%emt 00:00:01]} 32. Qc2+ {[%clk 00:00:55]} g6 {[%clk 00:00:06]} 33. Rc7
{[%clk 00:00:56]} {[%emt 00:00:01]} Kg7 {[%clk 00:00:06]} {[%emt 00:00:02]} 34.
Rxf7+ {[%clk 00:00:56]} {[%emt 00:00:02]} Kxf7 {[%clk 00:00:07]} 35. Qb3+
{[%clk 00:00:57]} {[%emt 00:00:01]} Kg7 {[%clk 00:00:08]} {[%emt 00:00:02]} 36.
Qxb6 {[%clk 00:00:59]} Rxa2 {[%clk 00:00:09]} {[%emt 00:00:02]} 37. Qc7+ {[%clk
00:00:58]} {[%emt 00:00:01]} Kh8 {[%clk 00:00:09]} {[%emt 00:00:03]} 38. Qd8+
{[%clk 00:00:59]} {[%emt 00:00:01]} Kg7 {[%clk 00:00:10]} 39. Qe7+ {[%clk
00:01:00]} {[%emt 00:00:01]} Kh8 {[%clk 00:00:10]} {[%emt 00:00:02]} 40. Qf8+
{[%clk 00:01:00]} {[%emt 00:00:01]} 1-0

[Event "MČR v bleskovém šachu družstev 2019"]
[Site "Teplice, Czech Republic"]
[Date "2019.09.14"]
[Round "5.22"]
[White "Rolinek, Dominik"]
[Black "Buchcar, Tomas"]
[Result "0-1"]
[TimeControl "3 mim. + 2 s"]
[WhiteFideId "384569"]
[BlackFideId "328421"]
[WhiteElo "1885"]
[BlackElo "2145"]

1. d4 {[%clk 00:03:03]} {[%emt 00:08:44]} Nf6 {[%clk 00:03:03]} {[%emt
00:00:01]} 2. Bf4 {[%clk 00:03:04]} c5 {[%clk 00:03:04]} {[%emt 00:00:02]} 3.
c3 {[%clk 00:02:59]} {[%emt 00:00:07]} b6 {[%clk 00:03:03]} {[%emt 00:00:03]} 4.
e3 {[%clk 00:02:55]} {[%emt 00:00:05]} Bb7 {[%clk 00:03:04]} {[%emt 00:00:02]}
5. Nf3 {[%clk 00:02:56]} {[%emt 00:00:01]} d6 {[%clk 00:03:04]} {[%emt
00:00:02]} 6. Bd3 {[%clk 00:02:55]} {[%emt 00:00:03]} Nbd7 {[%clk 00:03:03]}
{[%emt 00:00:03]} 7. Nbd2 {[%clk 00:02:53]} {[%emt 00:00:04]} Qc7 {[%clk
00:03:01]} {[%emt 00:00:05]} 8. O-O {[%clk 00:02:49]} {[%emt 00:00:05]} h6
{[%clk 00:02:32]} {[%emt 00:00:30]} 9. e4 {[%clk 00:02:43]} {[%emt 00:00:08]}
g5 {[%clk 00:02:01]} {[%emt 00:00:34]} 10. Bg3 {[%clk 00:02:40]} {[%emt
00:00:05]} Bg7 {[%clk 00:01:35]} {[%emt 00:00:29]} 11. e5 {[%clk 00:02:41]}
dxe5 {[%clk 00:01:36]} 12. dxe5 {[%clk 00:02:42]} {[%emt 00:00:01]} Nh5 {[%clk
00:01:29]} {[%emt 00:00:09]} 13. e6 {[%clk 00:02:38]} {[%emt 00:00:06]} Nxg3
{[%clk 00:01:29]} {[%emt 00:00:02]} 14. exd7+ {[%clk 00:02:39]} {[%emt
00:00:01]} Qxd7 {[%clk 00:01:29]} {[%emt 00:00:02]} 15. hxg3 {[%clk 00:02:02]}
{[%emt 00:00:39]} Qxd3 {[%clk 00:01:30]} {[%emt 00:00:01]} 16. Qa4+ {[%clk
00:02:02]} Qd7 {[%clk 00:01:24]} {[%emt 00:00:09]} 17. Qxd7+ {[%clk 00:01:53]}
{[%emt 00:00:11]} Kxd7 {[%clk 00:01:25]} {[%emt 00:00:02]} 18. Rad1 {[%clk
00:01:52]} {[%emt 00:00:01]} Rad8 {[%clk 00:01:20]} {[%emt 00:00:07]} 19. Nc4+
{[%clk 00:01:51]} {[%emt 00:00:04]} Kc8 {[%clk 00:01:21]} {[%emt 00:00:01]} 20.
Nce5 {[%clk 00:01:42]} {[%emt 00:00:11]} Bxf3 {[%clk 00:00:45]} {[%emt
00:00:38]} 21. Nxf3 {[%clk 00:01:41]} {[%emt 00:00:03]} Rxd1 {[%clk 00:00:45]}
{[%emt 00:00:03]} 22. Rxd1 {[%clk 00:01:42]} Rd8 {[%clk 00:00:46]} {[%emt
00:00:01]} 23. Rxd8+ {[%clk 00:01:34]} {[%emt 00:00:10]} Kxd8 {[%clk 00:00:48]}
24. Kf1 {[%clk 00:01:35]} {[%emt 00:00:01]} e6 {[%clk 00:00:48]} {[%emt
00:00:02]} 25. Ke2 {[%clk 00:01:37]} Kd7 {[%clk 00:00:49]} 26. Kd3 {[%clk
00:01:38]} Kc6 {[%clk 00:00:48]} {[%emt 00:00:03]} 27. g4 {[%clk 00:01:35]}
{[%emt 00:00:06]} f5 {[%clk 00:00:48]} {[%emt 00:00:03]} 28. gxf5 {[%clk
00:01:32]} {[%emt 00:00:04]} exf5 {[%clk 00:00:49]} {[%emt 00:00:01]} 29. Nd2
{[%clk 00:01:33]} b5 {[%clk 00:00:48]} {[%emt 00:00:03]} 30. b3 {[%clk
00:01:30]} {[%emt 00:00:04]} Bf6 {[%clk 00:00:42]} {[%emt 00:00:08]} 31. c4
{[%clk 00:01:31]} {[%emt 00:00:01]} a6 {[%clk 00:00:43]} {[%emt 00:00:02]} 32.
f3 {[%clk 00:01:22]} {[%emt 00:00:11]} h5 {[%clk 00:00:40]} {[%emt 00:00:05]}
33. Nf1 {[%clk 00:01:17]} {[%emt 00:00:07]} f4 {[%clk 00:00:36]} {[%emt
00:00:06]} 34. Nd2 {[%clk 00:01:16]} {[%emt 00:00:02]} Be7 {[%clk 00:00:35]}
{[%emt 00:00:04]} 35. Ne4 {[%clk 00:01:16]} {[%emt 00:00:02]} Kd7 {[%clk
00:00:34]} {[%emt 00:00:03]} 36. Nd2 {[%clk 00:00:49]} {[%emt 00:00:27]} Ke6
{[%clk 00:00:32]} {[%emt 00:00:06]} 37. Ke4 {[%clk 00:00:49]} {[%emt 00:00:02]}
b4 {[%clk 00:00:25]} {[%emt 00:00:09]} 38. Nf1 {[%clk 00:00:42]} {[%emt
00:00:09]} Bd6 {[%clk 00:00:25]} {[%emt 00:00:01]} 39. Nd2 {[%clk 00:00:40]}
{[%emt 00:00:04]} Be5 {[%clk 00:00:26]} {[%emt 00:00:02]} 40. Nf1 {[%clk
00:00:37]} {[%emt 00:00:05]} g4 {[%clk 00:00:26]} {[%emt 00:00:02]} 41. fxg4
{[%clk 00:00:34]} {[%emt 00:00:05]} hxg4 {[%clk 00:00:26]} {[%emt 00:00:02]} 42.
Nd2 {[%clk 00:00:25]} {[%emt 00:00:11]} Bb8 {[%clk 00:00:22]} {[%emt 00:00:06]}
43. Nf1 {[%clk 00:00:26]} {[%emt 00:00:01]} Kf6 {[%clk 00:00:21]} {[%emt
00:00:04]} 44. Nh2 {[%clk 00:00:20]} {[%emt 00:00:08]} Kg5 {[%clk 00:00:21]}
{[%emt 00:00:01]} 45. Nf1 {[%clk 00:00:17]} {[%emt 00:00:04]} Kh4 {[%clk
00:00:22]} {[%emt 00:00:02]} 46. Kd3 {[%clk 00:00:12]} {[%emt 00:00:07]} f3
{[%clk 00:00:17]} {[%emt 00:00:06]} 47. gxf3 {[%clk 00:00:13]} {[%emt
00:00:01]} gxf3 {[%clk 00:00:18]} {[%emt 00:00:01]} 48. Ke3 {[%clk 00:00:15]}
Kg4 {[%clk 00:00:18]} {[%emt 00:00:02]} 49. Nh2+ {[%clk 00:00:16]} Bxh2 {[%emt
00:00:21]} 50. Kd4 {[%emt 00:00:28]} 0-1

[Event "MČR v bleskovém šachu družstev 2019"]
[Site "Teplice, Czech Republic"]
[Date "2019.09.14"]
[Round "5.23"]
[White "Tresnak, Filip"]
[Black "Hosnedl, Matyas"]
[Result "0-1"]
[TimeControl "3 mim. + 2 s"]
[WhiteFideId "333905"]
[BlackFideId "390011"]
[WhiteElo "1931"]
[BlackElo "1852"]

1. e4 {[%clk 00:03:02]} e6 {[%clk 00:03:04]} 2. d4 {[%clk 00:03:03]} {[%emt
00:00:01]} d5 {[%clk 00:03:05]} 3. Nc3 {[%clk 00:03:04]} {[%emt 00:00:01]} Nf6
{[%clk 00:03:04]} {[%emt 00:00:03]} 4. e5 {[%clk 00:03:05]} {[%emt 00:00:02]}
Nfd7 {[%clk 00:03:05]} 5. f4 {[%clk 00:03:00]} {[%emt 00:00:07]} c5 {[%clk
00:03:06]} 6. Nf3 {[%clk 00:03:01]} Nc6 {[%clk 00:03:07]} 7. Be3 {[%clk
00:02:43]} {[%emt 00:00:21]} f6 {[%clk 00:03:07]} {[%emt 00:00:02]} 8. Be2
{[%clk 00:02:41]} {[%emt 00:00:04]} Be7 {[%clk 00:02:58]} {[%emt 00:00:11]} 9.
O-O {[%clk 00:02:36]} {[%emt 00:00:07]} O-O {[%clk 00:02:55]} {[%emt 00:00:05]}
10. Qd2 {[%clk 00:02:15]} {[%emt 00:00:23]} fxe5 {[%clk 00:02:39]} {[%emt
00:00:18]} 11. fxe5 {[%clk 00:02:15]} {[%emt 00:00:01]} cxd4 {[%clk 00:02:39]}
{[%emt 00:00:03]} 12. Bxd4 {[%clk 00:02:09]} {[%emt 00:00:08]} Nxd4 {[%clk
00:02:39]} {[%emt 00:00:02]} 13. Nxd4 {[%clk 00:02:08]} {[%emt 00:00:03]} Nxe5
{[%clk 00:02:36]} {[%emt 00:00:05]} 14. Qe3 {[%clk 00:01:50]} {[%emt 00:00:19]}
Bf6 {[%clk 00:01:52]} {[%emt 00:00:47]} 15. Rad1 {[%clk 00:01:49]} {[%emt
00:00:03]} Qb6 {[%clk 00:01:46]} {[%emt 00:00:08]} 16. Na4 {[%clk 00:01:27]}
{[%emt 00:00:25]} Qb4 {[%clk 00:01:29]} {[%emt 00:00:18]} 17. b3 {[%clk
00:01:19]} {[%emt 00:00:10]} b5 {[%clk 00:01:26]} {[%emt 00:00:04]} 18. Nxb5
{[%clk 00:01:08]} {[%emt 00:00:14]} Bd7 {[%clk 00:01:01]} {[%emt 00:00:27]} 19.
a3 {[%clk 00:01:03]} {[%emt 00:00:07]} Qa5 {[%clk 00:00:55]} {[%emt 00:00:07]}
20. Nac3 {[%clk 00:01:00]} {[%emt 00:00:06]} Rac8 {[%clk 00:00:42]} {[%emt
00:00:15]} 21. b4 {[%clk 00:00:57]} {[%emt 00:00:06]} Qb6 {[%clk 00:00:36]}
{[%emt 00:00:08]} 22. Qxb6 {[%clk 00:00:47]} axb6 {[%clk 00:00:37]} 23. Na4
{[%clk 00:00:39]} {[%emt 00:00:10]} Rxc2 {[%clk 00:00:35]} {[%emt 00:00:05]} 24.
Nd4 {[%clk 00:00:24]} {[%emt 00:00:16]} Bxa4 {[%clk 00:00:33]} {[%emt
00:00:04]} 25. Nxc2 {[%clk 00:00:25]} Bxc2 {[%clk 00:00:34]} {[%emt 00:00:01]}
26. Rc1 {[%clk 00:00:25]} {[%emt 00:00:03]} Ba4 {[%clk 00:00:27]} {[%emt
00:00:08]} 27. b5 {[%clk 00:00:20]} {[%emt 00:00:07]} Bb3 {[%clk 00:00:23]}
{[%emt 00:00:06]} 28. Rc7 {[%clk 00:00:20]} {[%emt 00:00:02]} Bc4 {[%clk
00:00:20]} {[%emt 00:00:05]} 29. Bxc4 {[%clk 00:00:20]} {[%emt 00:00:02]} Nxc4
{[%clk 00:00:22]} 30. a4 {[%clk 00:00:11]} {[%emt 00:00:11]} Bd4+ {[%clk
00:00:23]} 31. Kh1 {[%clk 00:00:05]} {[%emt 00:00:10]} Rxf1# {[%clk 00:00:24]}
{[%emt 00:00:01]} 0-1

[Event "MČR v bleskovém šachu družstev 2019"]
[Site "Teplice, Czech Republic"]
[Date "2019.09.14"]
[Round "5.24"]
[White "Stastna, Martina"]
[Black "Prudek, Jiri"]
[Result "0-1"]
[TimeControl "3 mim. + 2 s"]
[WhiteFideId "385123"]
[BlackFideId "327310"]
[WhiteElo "1657"]
[BlackElo "1962"]

1. e4 {[%clk 00:03:03]} c5 {[%clk 00:03:03]} {[%emt 00:00:01]} 2. Nf3 {[%clk
00:03:03]} {[%emt 00:00:01]} e6 {[%clk 00:03:05]} 3. d4 {[%clk 00:03:03]}
{[%emt 00:00:03]} cxd4 {[%clk 00:03:06]} {[%emt 00:00:01]} 4. Nxd4 {[%clk
00:03:04]} a6 {[%clk 00:03:07]} {[%emt 00:00:01]} 5. Nc3 {[%clk 00:03:03]}
{[%emt 00:00:02]} b5 {[%clk 00:03:07]} {[%emt 00:00:02]} 6. a3 {[%clk
00:03:01]} {[%emt 00:00:04]} Bb7 {[%clk 00:03:08]} {[%emt 00:00:01]} 7. Bd3
{[%clk 00:03:01]} {[%emt 00:00:02]} Qc7 {[%clk 00:03:09]} {[%emt 00:00:01]} 8.
O-O {[%clk 00:02:59]} {[%emt 00:00:03]} d6 {[%clk 00:03:10]} {[%emt 00:00:02]}
9. f4 {[%clk 00:02:57]} {[%emt 00:00:04]} Nd7 {[%clk 00:03:11]} 10. Kh1 {[%clk
00:02:58]} {[%emt 00:00:02]} Ngf6 {[%clk 00:03:10]} {[%emt 00:00:02]} 11. Qe2
{[%clk 00:02:53]} {[%emt 00:00:07]} h5 {[%clk 00:03:07]} {[%emt 00:00:05]} 12.
Nf3 {[%clk 00:02:50]} {[%emt 00:00:05]} h4 {[%clk 00:03:01]} {[%emt 00:00:08]}
13. f5 {[%clk 00:02:39]} {[%emt 00:00:14]} e5 {[%clk 00:02:53]} {[%emt
00:00:09]} 0-1

[Event "MČR v bleskovém šachu družstev 2019"]
[Site "Teplice, Czech Republic"]
[Date "2019.09.14"]
[Round "5.25"]
[White "Sprenar, Petr"]
[Black "Bernasek, Jan"]
[Result "0-1"]
[TimeControl "3 mim. + 2 s"]
[BlackTitle "GM"]
[WhiteFideId "397164"]
[BlackFideId "311995"]
[WhiteElo "2173"]
[BlackElo "2526"]

1. d4 {[%clk 00:03:03]} {[%emt 00:14:35]} Nf6 {[%clk 00:03:03]} {[%emt
00:00:01]} 2. Nf3 {[%clk 00:03:04]} {[%emt 00:00:01]} e6 {[%clk 00:03:04]} 3.
c4 {[%clk 00:03:05]} {[%emt 00:00:01]} Bb4+ {[%clk 00:03:05]} {[%emt 00:00:01]}
4. Bd2 {[%clk 00:03:06]} c5 {[%clk 00:03:05]} {[%emt 00:00:01]} 5. Bxb4 {[%clk
00:03:00]} {[%emt 00:00:09]} cxb4 {[%clk 00:03:06]} 6. e3 {[%clk 00:02:56]}
{[%emt 00:00:06]} O-O {[%clk 00:03:05]} {[%emt 00:00:03]} 7. Bd3 {[%clk
00:02:55]} {[%emt 00:00:03]} d6 {[%clk 00:03:06]} {[%emt 00:00:01]} 8. O-O
{[%clk 00:02:53]} {[%emt 00:00:04]} Nbd7 {[%clk 00:03:07]} {[%emt 00:00:01]} 9.
a3 {[%clk 00:02:54]} {[%emt 00:00:02]} bxa3 {[%clk 00:03:04]} {[%emt 00:00:04]}
10. Rxa3 {[%clk 00:02:51]} {[%emt 00:00:05]} e5 {[%clk 00:03:05]} {[%emt
00:00:01]} 11. Nc3 {[%clk 00:02:51]} {[%emt 00:00:02]} Re8 {[%clk 00:02:58]}
{[%emt 00:00:09]} 12. dxe5 {[%clk 00:02:46]} {[%emt 00:00:07]} dxe5 {[%clk
00:02:58]} {[%emt 00:00:01]} 13. Ne4 {[%clk 00:02:44]} {[%emt 00:00:05]} Nxe4
{[%clk 00:02:33]} {[%emt 00:00:28]} 14. Bxe4 {[%clk 00:02:44]} {[%emt
00:00:02]} Qb6 {[%clk 00:02:26]} {[%emt 00:00:08]} 15. Rb3 {[%clk 00:02:14]}
{[%emt 00:00:33]} Qc7 {[%clk 00:02:24]} {[%emt 00:00:04]} 16. Bd5 {[%clk
00:01:49]} {[%emt 00:00:27]} Nf6 {[%clk 00:02:03]} {[%emt 00:00:22]} 17. e4
{[%clk 00:01:49]} {[%emt 00:00:02]} Nxd5 {[%clk 00:01:40]} {[%emt 00:00:25]} 18.
cxd5 {[%clk 00:01:50]} {[%emt 00:00:01]} Bd7 {[%clk 00:01:41]} {[%emt
00:00:02]} 19. Qc1 {[%clk 00:01:40]} {[%emt 00:00:11]} Qb8 {[%clk 00:01:10]}
{[%emt 00:00:33]} 20. Qc3 {[%clk 00:01:25]} {[%emt 00:00:18]} b6 {[%clk
00:01:10]} {[%emt 00:00:02]} 21. Rc1 {[%clk 00:01:16]} {[%emt 00:00:10]} Rc8
{[%clk 00:01:08]} {[%emt 00:00:04]} 22. Qd2 {[%clk 00:01:17]} Rxc1+ 23. Qxc1
{[%clk 00:01:18]} Qd6 {[%clk 00:01:02]} 24. Rc3 {[%clk 00:01:09]} {[%emt
00:00:12]} h6 {[%clk 00:01:00]} {[%emt 00:00:03]} 25. h3 {[%clk 00:01:02]}
{[%emt 00:00:08]} f5 {[%clk 00:01:00]} {[%emt 00:00:02]} 26. exf5 {[%clk
00:00:42]} {[%emt 00:00:23]} Bxf5 {[%clk 00:00:58]} {[%emt 00:00:03]} 27. Qe3
{[%clk 00:00:31]} {[%emt 00:00:14]} e4 {[%clk 00:00:42]} {[%emt 00:00:18]} 28.
Nd4 {[%clk 00:00:22]} {[%emt 00:00:11]} Bh7 {[%clk 00:00:26]} {[%emt 00:00:17]}
29. Nc6 {[%clk 00:00:09]} {[%emt 00:00:16]} Re8 {[%clk 00:00:21]} {[%emt
00:00:07]} 30. Qd4 {[%clk 00:00:09]} {[%emt 00:00:01]} Kh8 {[%clk 00:00:20]}
{[%emt 00:00:03]} 31. Rg3 {[%clk 00:00:10]} {[%emt 00:00:02]} Qd7 {[%clk
00:00:14]} {[%emt 00:00:08]} 32. d6 {[%clk 00:00:06]} {[%emt 00:00:06]} Re6
{[%clk 00:00:10]} {[%emt 00:00:05]} 33. Ne7 {[%clk 00:00:06]} {[%emt 00:00:03]}
Rxe7 {[%clk 00:00:10]} {[%emt 00:00:02]} 34. dxe7 {[%clk 00:00:05]} {[%emt
00:00:02]} Qxe7 {[%clk 00:00:12]} 35. Re3 {[%clk 00:00:06]} {[%emt 00:00:03]}
Bg6 {[%clk 00:00:13]} 36. b4 {[%clk 00:00:07]} {[%emt 00:00:01]} Kh7 {[%clk
00:00:14]} 37. g3 {[%clk 00:00:07]} {[%emt 00:00:02]} a5 {[%clk 00:00:15]} 38.
bxa5 {[%clk 00:00:08]} {[%emt 00:00:02]} bxa5 {[%emt 00:00:01]} 39. h4 {[%clk
00:00:08]} Qc7 {[%clk 00:00:12]} {[%emt 00:00:06]} 40. h5 {[%clk 00:00:08]}
{[%emt 00:00:02]} Bxh5 {[%clk 00:00:13]} {[%emt 00:00:01]} 41. Qxe4+ {[%clk
00:00:09]} {[%emt 00:00:02]} Bg6 {[%clk 00:00:14]} 42. Qe5 {[%clk 00:00:08]}
{[%emt 00:00:04]} Qc1+ {[%clk 00:00:14]} 43. Re1 {[%clk 00:00:08]} {[%emt
00:00:02]} Qa3 {[%clk 00:00:12]} {[%emt 00:00:04]} 44. Qe3 {[%clk 00:00:08]}
{[%emt 00:00:02]} Qd6 {[%clk 00:00:12]} {[%emt 00:00:02]} 45. Ra1 {[%clk
00:00:07]} {[%emt 00:00:03]} Qb4 {[%clk 00:00:11]} {[%emt 00:00:03]} 46. Qa3
{[%clk 00:00:07]} {[%emt 00:00:02]} Qe4 {[%clk 00:00:11]} {[%emt 00:00:03]} 47.
Qxa5 {[%clk 00:00:06]} {[%emt 00:00:03]} Qf3 {[%clk 00:00:10]} {[%emt
00:00:03]} 48. Qa3 {[%clk 00:00:06]} {[%emt 00:00:01]} Qh5 {[%clk 00:00:08]}
{[%emt 00:00:03]} 49. Qe3 {[%clk 00:00:06]} {[%emt 00:00:02]} Qd5 {[%clk
00:00:09]} {[%emt 00:00:02]} 50. Re1 {[%clk 00:00:07]} {[%emt 00:00:02]} Qh5
{[%clk 00:00:09]} {[%emt 00:00:01]} 51. Qe2 {[%clk 00:00:07]} {[%emt 00:00:01]}
Qh3 {[%clk 00:00:10]} {[%emt 00:00:02]} 52. Qf1 {[%clk 00:00:08]} {[%emt
00:00:01]} Qg4 {[%clk 00:00:11]} 53. Qg2 {[%clk 00:00:08]} {[%emt 00:00:02]}
Qg5 {[%clk 00:00:12]} {[%emt 00:00:01]} 54. f4 {[%clk 00:00:09]} {[%emt
00:00:01]} Qg4 {[%clk 00:00:13]} 55. Kh2 {[%clk 00:00:09]} {[%emt 00:00:02]}
Qh5+ {[%clk 00:00:14]} {[%emt 00:00:01]} 56. Qh3 {[%clk 00:00:09]} {[%emt
00:00:02]} Qd5 {[%emt 00:00:02]} 57. g4 {[%clk 00:00:08]} {[%emt 00:00:01]}
Qd2+ {[%clk 00:00:17]} {[%emt 00:00:01]} 58. Qg2 {[%clk 00:00:08]} {[%emt
00:00:03]} Qxe1 {[%clk 00:00:17]} {[%emt 00:00:01]} 59. f5 {[%clk 00:00:09]}
Qh4+ {[%clk 00:00:18]} {[%emt 00:00:01]} 60. Kg1 {[%clk 00:00:10]} Bf7 {[%clk
00:00:19]} 61. Qe4 {[%clk 00:00:11]} Qg3+ {[%clk 00:00:18]} {[%emt 00:00:03]}
62. Kf1 {[%clk 00:00:10]} {[%emt 00:00:02]} Kh8 {[%clk 00:00:17]} {[%emt
00:00:04]} 63. Qa8+ {[%clk 00:00:11]} {[%emt 00:00:01]} 0-1